[Event "46th Roda Open 2019"]
[Site "La Roda"]
[Date "2019.04.20"]
[Round "7.4"]
[White "Grachev, Boris"]
[Black "Gines Esteo, Pedro Antonio"]
[Result "1/2-1/2"]
[ECO "A41"]
[WhiteElo "2618"]
[BlackElo "2399"]
[Annotator "RC"]
[PlyCount "88"]
[EventDate "2019.04.17"]
[EventType "swiss"]
[EventCountry "ESP"]
[SourceTitle "playchess.com"]
[Source "ChessBase"]
[SourceQuality "1"]
[TimeControl "5400+30"]

1. d4 {[%emt 0:00:36]} d6 {[%emt 0:02:09]} 2. Nf3 {[%emt 0:00:31]} g6 {[%emt 0:00:13]} 3. e4 {[%emt 0:00:47]} Bg7 {[%emt 0:00:05]} 4. Bc4 {[%emt 0:01:01]} Nf6 {[%emt 0:05:18]} 5. Qe2 {[%emt 0:00:07]} d5 {[%emt 0:02:44]} 6. exd5 {[%emt 0:00:36]} Nxd5 {[%emt 0:00:14]} 7. O-O {[%emt 0:01:14]} O-O {[%emt 0:00:53]} 8. Bb3 {[%emt 0:03:26]} Bg4 {[%emt 0:05:52]} 9. h3 {[%emt 0:01:07]} Bxf3 {[%emt 0:00:06]} 10. Qxf3 {[%emt 0:00:04]} c6 {[%emt 0:00:06]} 11. c3 {[%emt 0:00:58]} e6 {[%emt 0:01:55]} 12. Nd2 {[%emt 0:06:25]} a5 {[%emt 0:01:39]} 13. a4 {[%emt 0:01:34]} Nd7 {[%emt 0:03:49]} 14. Nc4 {[%emt 0:00:43]} h6 {[%emt 0:12:57]} 15. Qg3 {[%emt 0:05:43]} Qb8 {[%emt 0:02:10]} 16. Qxb8 {[%emt 0:00:54]} Rfxb8 {[%emt 0:00:30]} 17. Bc2 {[%emt 0:00:37]} h5 {[%emt 0:10:54]} 18. Re1 {[%emt 0:10:22]} Bf6 {[%emt 0:10:47]} 19. Be4 {[%emt 0:03:48]} Kg7 {[%emt 0:01:52]} 20. Bf3 {[%emt 0:01:00]} Bd8 {[%emt 0:03:10]} 21. Ne3 {[%emt 0:02:52]} N7b6 {[%emt 0:09:54]} 22. Bd2 {[%emt 0:03:01]} Nxe3 {[%emt 0:01:39]} 23. Bxe3 {[%emt 0:04:41]} Nd5 {[%emt 0:00:43]} 24. Bd2 {[%emt 0:01:11]} Bc7 {[%emt 0:00:07]} 25. Re2 {[%emt 0:06:03]} Rd8 {[%emt 0:07:37]} 26. h4 {[%emt 0:03:31]} Rd7 {[%emt 0:00:09]} 27. g3 {[%emt 0:00:29]} Bd8 {[%emt 0:00:16]} 28. Kg2 {[%emt 0:03:13]} Bf6 {[%emt 0:00:10]} 29. Bg5 {[%emt 0:05:54]} Rh8 {[%emt 0:02:41]} 30. Bxf6+ {[%emt 0:01:16]} Kxf6 {[%emt 0:00:26]} 31. Re5 {[%emt 0:00:06]} Ra8 {[%emt 0:02:22]} 32. Ra3 {[%emt 0:00:44]} Ra6 {[%emt 0:01:50]} 33. Rb3 {[%emt 0:01:39]} Ra7 {[%emt 0:02:35]} 34. Kf1 {[%emt 0:01:11]} Ke7 {[%emt 0:01:08]} 35. Re1 {[%emt 0:00:54]} Kd6 {[%emt 0:01:16]} 36. Ke2 {[%emt 0:05:14]} Kc7 {[%emt 0:00:12]} 37. Kd3 {[%emt 0:00:38]} Ra8 {[%emt 0:01:18]} 38. Ra3 {[%emt 0:01:28]} Rad8 {[%emt 0:02:13]} 39. Kc2 {[%emt 0:00:23]} Ne7 {[%emt 0:01:20]} 40. Re2 {[%emt 0:01:36]} b6 {[%emt 0:00:48]} 41. Be4 {[%emt 0:04:08]} Nc8 {[%emt 0:01:20]} 42. Bd3 {[%emt 0:01:17]} Ne7 {[%emt 0:01:20]} 43. Be4 {[%emt 0:03:37]} Nc8 {[%emt 0:00:17]} 44. Bd3 {[%emt 0:00:05]} Ne7 {[%emt 0:00:05]} 1/2-1/2

[Event "46th Roda Open 2019"]
[Site "La Roda"]
[Date "2019.04.21"]
[Round "8.1"]
[White "Predke, Alexandr"]
[Black "Solodovnichenko, Yuri"]
[Result "1/2-1/2"]
[ECO "C42"]
[WhiteElo "2619"]
[BlackElo "2554"]
[Annotator "ChessBase"]
[PlyCount "24"]
[EventDate "2019.04.17"]
[EventType "swiss"]
[EventCountry "ESP"]
[SourceTitle "playchess.com"]
[Source "ChessBase"]
[SourceQuality "1"]
[TimeControl "5400+30"]

1. e4 {[%emt 0:01:21]} e5 {[%emt 0:00:00]} 2. Nf3 {[%emt 0:01:00]} Nf6 {[%emt 0:00:00]} 3. Nxe5 {[%emt 0:01:56]} d6 {[%emt 0:00:00]} 4. Nc4 {[%emt 0:03:15]} Nxe4 {[%emt 0:00:00]} 5. Qe2 {[%emt 0:00:04]} Qe7 {[%emt 0:00:47]} 6. Ne3 {[%emt 0:00:12]} Nc6 {[%emt 0:13:19]} 7. c3 {[%emt 0:15:10]} Be6 {[%emt 0:06:08]} 8. g3 {[%emt 0:01:44]} d5 {[%emt 0:03:01]} 9. Bg2 {[%emt 0:00:49]} O-O-O {[%emt 0:00:46]} 10. d4 {[%emt 0:04:38]} Qd7 {[%emt 0:04:59]} 11. Nd2 {[%emt 0:00:41]} Nxd2 {[%emt 0:21:20]} 12. Bxd2 {[%emt 0:00:17]} h5 {[%emt 0:00:50]} 1/2-1/2

[Event "46th Roda Open 2019"]
[Site "La Roda"]
[Date "2019.04.21"]
[Round "8.2"]
[White "Perez Candelario, Manuel"]
[Black "Ibarra Jerez, Jose Carlos"]
[Result "1-0"]
[ECO "B01"]
[WhiteElo "2615"]
[BlackElo "2542"]
[Annotator "ChessBase"]
[PlyCount "73"]
[EventDate "2019.04.17"]
[EventType "swiss"]
[EventCountry "ESP"]
[SourceTitle "playchess.com"]
[Source "ChessBase"]
[SourceQuality "1"]
[TimeControl "5400+30"]

1. e4 {[%emt 0:01:06]} d5 {[%emt 0:00:00]} 2. exd5 {[%emt 0:00:04]} Qxd5 {[%emt 0:00:11]} 3. Nc3 {[%emt 0:00:06]} Qd8 {[%emt 0:00:44]} 4. d4 {[%emt 0:01:24]} Nf6 {[%emt 0:00:34]} 5. Nf3 {[%emt 0:04:39]} g6 {[%emt 0:00:24]} 6. Bg5 {[%emt 0:04:11]} Bg7 {[%emt 0:00:21]} 7. Qd2 {[%emt 0:00:26]} h6 {[%emt 0:05:09]} 8. Bf4 {[%emt 0:04:09]} c6 {[%emt 0:00:46]} 9. Bc4 {[%emt 0:03:45]} Nd5 {[%emt 0:21:04]} 10. Be5 {[%emt 0:01:12]} f6 {[%emt 0:00:48]} 11. Bg3 {[%emt 0:02:46]} g5 {[%emt 0:05:53]} 12. Qd3 {[%emt 0:12:32]} Be6 {[%emt 0:05:05]} 13. Bb3 {[%emt 0:04:04]} Qd7 {[%emt 0:03:28]} 14. O-O-O {[%emt 0:03:54]} Bf5 {[%emt 0:06:03]} 15. Qe2 {[%emt 0:05:43]} Na6 {[%emt 0:09:09]} 16. Rhe1 {[%emt 0:02:48]} Kf7 {[%emt 0:11:36]} 17. h4 {[%emt 0:13:11]} g4 {[%emt 0:03:45]} 18. Nd2 {[%emt 0:00:05]} h5 {[%emt 0:03:10]} 19. Kb1 {[%emt 0:00:04]} Rhe8 {[%emt 0:01:19]} 20. Nc4 {[%emt 0:01:11]} Kf8 {[%emt 0:04:28]} 21. Ne3 {[%emt 0:01:32]} Nxe3 {[%emt 0:03:31]} 22. Qxe3 {[%emt 0:01:42]} b5 {[%emt 0:00:41]} 23. Ne4 Rad8 {[%emt 0:00:44]} 24. a3 {[%emt 0:09:01]} c5 {[%emt 0:01:55]} 25. Nxc5 {[%emt 0:02:36]} Nxc5 {[%emt 0:00:11]} 26. dxc5 {[%emt 0:00:04]} Qxd1+ {[%emt 0:00:14]} 27. Rxd1 {[%emt 0:00:04]} Rxd1+ {[%emt 0:00:06]} 28. Ka2 {[%emt 0:00:03]} Rg1 {[%emt 0:04:05]} 29. c6 {[%emt 0:01:13]} Rd1 {[%emt 0:05:11]} 30. Qc5 {[%emt 0:01:28]} Bc8 {[%emt 0:02:20]} 31. Qxh5 {[%emt 0:00:58]} e6 {[%emt 0:00:04]} 32. Qxg4 {[%emt 0:01:13]} Rh1 {[%emt 0:00:41]} 33. c7 {[%emt 0:01:07]} e5 {[%emt 0:01:39]} 34. Qb4+ {[%emt 0:01:32]} Re7 {[%emt 0:00:05]} 35. Qd6 {[%emt 0:00:35]} f5 {[%emt 0:00:40]} 36. Qd5 {[%emt 0:00:16]} Re6 {[%emt 0:00:15]} 37. Qxe6 {[%emt 0:00:21]} 1-0

[Event "46th Roda Open 2019"]
[Site "La Roda"]
[Date "2019.04.21"]
[Round "8.3"]
[White "Burmakin, Vladimir"]
[Black "Popov, Ivan"]
[Result "1/2-1/2"]
[ECO "A06"]
[WhiteElo "2495"]
[BlackElo "2585"]
[Annotator "ChessBase"]
[PlyCount "39"]
[EventDate "2019.04.17"]
[EventType "swiss"]
[EventCountry "ESP"]
[SourceTitle "playchess.com"]
[Source "ChessBase"]
[SourceQuality "1"]
[TimeControl "5400+30"]

1. Nf3 {[%emt 0:00:00]} d5 {[%emt 0:01:07]} 2. g3 {[%emt 0:00:05]} c6 {[%emt 0:00:37]} 3. Bg2 {[%emt 0:00:54]} Bg4 {[%emt 0:00:12]} 4. h3 {[%emt 0:00:49]} Bxf3 {[%emt 0:01:22]} 5. exf3 {[%emt 0:00:07]} g6 {[%emt 0:00:44]} 6. O-O {[%emt 0:00:22]} Bg7 {[%emt 0:00:06]} 7. d3 {[%emt 0:00:13]} e6 {[%emt 0:00:52]} 8. c3 {[%emt 0:00:08]} Nd7 {[%emt 0:02:24]} 9. Re1 {[%emt 0:00:08]} Ne7 {[%emt 0:00:29]} 10. f4 {[%emt 0:00:35]} O-O {[%emt 0:04:35]} 11. Nd2 {[%emt 0:00:11]} Nf5 {[%emt 0:01:43]} 12. Nf3 {[%emt 0:00:09]} a5 {[%emt 0:00:38]} 13. Ne5 {[%emt 0:07:56]} a4 {[%emt 0:03:45]} 14. Nxd7 {[%emt 0:01:36]} Qxd7 {[%emt 0:00:08]} 15. Bd2 {[%emt 0:00:15]} b5 {[%emt 0:03:17]} 16. Rb1 {[%emt 0:26:54]} Rab8 {[%emt 0:09:39]} 17. d4 {[%emt 0:01:57]} Rfc8 {[%emt 0:01:56]} 18. Be3 {[%emt 0:05:15]} Qa7 {[%emt 0:24:17]} 19. a3 {[%emt 0:00:20]} c5 {[%emt 0:09:02]} 20. dxc5 {[%emt 0:00:29]} 1/2-1/2

[Event "46th Roda Open 2019"]
[Site "La Roda"]
[Date "2019.04.21"]
[Round "8.4"]
[White "Forcen Esteban, Daniel"]
[Black "Campora, Daniel H."]
[Result "1/2-1/2"]
[ECO "B12"]
[WhiteElo "2567"]
[BlackElo "2405"]
[Annotator "ChessBase"]
[PlyCount "107"]
[EventDate "2019.04.17"]
[EventType "swiss"]
[EventCountry "ESP"]
[SourceTitle "playchess.com"]
[Source "ChessBase"]
[SourceQuality "1"]
[TimeControl "5400+30"]

1. e4 {[%emt 0:00:00]} c6 {[%emt 0:00:00]} 2. d4 {[%emt 0:00:02]} d5 {[%emt 0:00:00]} 3. e5 {[%emt 0:00:04]} Bf5 {[%emt 0:00:00]} 4. Nf3 {[%emt 0:01:00]} e6 {[%emt 0:00:00]} 5. Be2 {[%emt 0:00:05]} c5 {[%emt 0:01:22]} 6. O-O {[%emt 0:01:05]} Nc6 {[%emt 0:00:27]} 7. c3 {[%emt 0:00:09]} a6 {[%emt 0:06:14]} 8. Be3 {[%emt 0:22:36]} c4 {[%emt 0:00:50]} 9. b3 {[%emt 0:11:24]} b5 {[%emt 0:00:09]} 10. a4 {[%emt 0:00:07]} Be7 {[%emt 0:03:18]} 11. Na3 {[%emt 0:14:57]} cxb3 {[%emt 0:14:31]} 12. Qxb3 {[%emt 0:04:52]} Na5 {[%emt 0:02:32]} 13. Qa2 {[%emt 0:01:35]} Nc4 {[%emt 0:05:37]} 14. Nc2 {[%emt 0:00:36]} Rb8 {[%emt 0:06:37]} 15. Nd2 {[%emt 0:08:23]} Nh6 {[%emt 0:00:44]} 16. axb5 {[%emt 0:04:46]} axb5 {[%emt 0:00:34]} 17. Nxc4 {[%emt 0:00:04]} bxc4 {[%emt 0:17:11]} 18. Bxh6 {[%emt 0:00:24]} gxh6 {[%emt 0:00:21]} 19. Ne3 {[%emt 0:00:06]} Bg6 {[%emt 0:01:34]} 20. f4 {[%emt 0:02:40]} Be4 {[%emt 0:05:08]} 21. Bg4 {[%emt 0:08:17]} O-O {[%emt 0:03:13]} 22. Qf2 {[%emt 0:01:12]} f5 {[%emt 0:01:36]} 23. exf6 {[%emt 0:00:28]} Rxf6 {[%emt 0:00:05]} 24. Bh3 {[%emt 0:04:43]} h5 {[%emt 0:02:15]} 25. Ra7 {[%emt 0:04:08]} Ra8 {[%emt 0:02:36]} 26. Rb7 {[%emt 0:02:35]} Rb8 {[%emt 0:02:42]} 27. Ra7 {[%emt 0:00:08]} Bd6 {[%emt 0:00:52]} 28. f5 {[%emt 0:02:02]} Qf8 {[%emt 0:02:48]} 29. Qe2 {[%emt 0:01:39]} Qh6 {[%emt 0:01:12]} 30. Nxc4 {[%emt 0:01:39]} Bxf5 {[%emt 0:05:06]} 31. Bxf5 {[%emt 0:00:58]} Rxf5 {[%emt 0:00:41]} 32. Nxd6 {[%emt 0:01:02]} Rxf1+ {[%emt 0:02:57]} 33. Qxf1 {[%emt 0:00:05]} Qe3+ {[%emt 0:00:10]} 34. Kh1 {[%emt 0:00:04]} Qf4 {[%emt 0:00:16]} 35. Kg1 {[%emt 0:00:13]} Qe3+ {[%emt 0:00:07]} 36. Kh1 {[%emt 0:00:02]} Qf4 {[%emt 0:00:03]} 37. Qe1 {[%emt 0:02:43]} Qxd6 {[%emt 0:01:36]} 38. g3 {[%emt 0:00:10]} e5 {[%emt 0:09:03]} 39. Qxe5 {[%emt 0:01:22]} Qxe5 {[%emt 0:00:07]} 40. dxe5 {[%emt 0:00:02]} Re8 {[%emt 0:00:04]} 41. Kg2 {[%emt 0:00:33]} Rxe5 {[%emt 0:00:08]} 42. Kf3 {[%emt 0:00:11]} h4 {[%emt 0:03:04]} 43. Rc7 {[%emt 0:01:44]} hxg3 {[%emt 0:00:14]} 44. hxg3 {[%emt 0:00:03]} h5 {[%emt 0:00:31]} 45. Kg2 {[%emt 0:01:01]} Re1 {[%emt 0:01:34]} 46. Kf3 {[%emt 0:00:23]} Re5 {[%emt 0:00:18]} 47. Rc5 {[%emt 0:00:07]} Kf7 {[%emt 0:00:18]} 48. c4 {[%emt 0:00:45]} Rf5+ {[%emt 0:00:46]} 49. Ke3 {[%emt 0:00:29]} Ke6 {[%emt 0:00:06]} 50. Rxd5 {[%emt 0:00:10]} Rxd5 {[%emt 0:00:05]} 51. cxd5+ {[%emt 0:00:04]} Kxd5 {[%emt 0:00:02]} 52. Kf4 {[%emt 0:00:10]} h4 {[%emt 0:00:06]} 53. Kg4 {[%emt 0:00:09]} hxg3 54. Kxg3 1/2-1/2

[Event "46th Roda Open 2019"]
[Site "La Roda"]
[Date "2019.04.21"]
[Round "8.5"]
[White "Pilgaard, Kim"]
[Black "Grachev, Boris"]
[Result "0-1"]
[ECO "A50"]
[WhiteElo "2418"]
[BlackElo "2618"]
[Annotator "ChessBase"]
[PlyCount "72"]
[EventDate "2019.04.17"]
[EventType "swiss"]
[EventCountry "ESP"]
[SourceTitle "playchess.com"]
[Source "ChessBase"]
[SourceQuality "1"]
[TimeControl "5400+30"]

1. d4 {[%emt 0:00:00]} Nf6 {[%emt 0:01:29]} 2. c4 {[%emt 0:00:00]} b6 {[%emt 0:00:07]} 3. Nc3 {[%emt 0:00:44]} Bb7 {[%emt 0:00:06]} 4. Qc2 {[%emt 0:00:32]} d5 {[%emt 0:00:12]} 5. cxd5 {[%emt 0:00:16]} Nxd5 {[%emt 0:00:05]} 6. e4 {[%emt 0:00:30]} Nxc3 {[%emt 0:00:07]} 7. bxc3 {[%emt 0:00:11]} e5 {[%emt 0:00:42]} 8. Nf3 {[%emt 0:00:27]} exd4 {[%emt 0:00:27]} 9. Bb5+ {[%emt 0:00:19]} c6 {[%emt 0:08:50]} 10. Bc4 {[%emt 0:00:22]} b5 {[%emt 0:06:34]} 11. Be2 {[%emt 0:00:25]} dxc3 {[%emt 0:08:31]} 12. Qxc3 {[%emt 0:00:14]} Nd7 {[%emt 0:02:52]} 13. O-O {[%emt 0:00:27]} b4 {[%emt 0:09:01]} 14. Qb3 {[%emt 0:11:13]} Be7 {[%emt 0:04:08]} 15. Rd1 {[%emt 0:04:17]} Qc7 {[%emt 0:02:48]} 16. Bg5 {[%emt 0:23:45]} Bxg5 {[%emt 0:10:05]} 17. Nxg5 {[%emt 0:00:09]} O-O {[%emt 0:00:24]} 18. Qxb4 {[%emt 0:08:34]} c5 {[%emt 0:01:53]} 19. Rac1 {[%emt 0:05:34]} h6 {[%emt 0:02:57]} 20. Nf3 {[%emt 0:00:35]} Rac8 {[%emt 0:01:17]} 21. Qb1 {[%emt 0:02:45]} Nb6 {[%emt 0:03:58]} 22. Nd2 {[%emt 0:02:10]} Rfd8 {[%emt 0:03:57]} 23. Nc4 {[%emt 0:00:58]} Rd4 {[%emt 0:02:06]} 24. f3 {[%emt 0:10:00]} Nxc4 {[%emt 0:09:19]} 25. Rxd4 {[%emt 0:05:48]} cxd4 {[%emt 0:00:06]} 26. Rxc4 {[%emt 0:00:09]} Qf4 {[%emt 0:04:47]} 27. Rxc8+ {[%emt 0:05:51]} Bxc8 {[%emt 0:00:04]} 28. Qd3 {[%emt 0:01:05]} Qd6 {[%emt 0:01:28]} 29. Kf2 {[%emt 0:05:04]} Be6 {[%emt 0:00:17]} 30. a3 {[%emt 0:00:50]} a5 {[%emt 0:00:51]} 31. h4 {[%emt 0:00:56]} a4 {[%emt 0:01:00]} 32. Bd1 {[%emt 0:00:35]} Bd7 {[%emt 0:02:45]} 33. Qc4 {[%emt 0:00:28]} Qb6 {[%emt 0:02:35]} 34. Bxa4 {[%emt 0:03:14]} d3+ {[%emt 0:00:24]} 35. Kf1 {[%emt 0:03:54]} Bxa4 {[%emt 0:00:38]} 36. Qxa4 {[%emt 0:00:12]} Qb1+ {[%emt 0:00:04]} 0-1

[Event "46th Roda Open 2019"]
[Site "La Roda"]
[Date "2019.04.21"]
[Round "8.6"]
[White "Gines Esteo, Pedro Antonio"]
[Black "Sivuk, Vitaly"]
[Result "0-1"]
[ECO "E10"]
[WhiteElo "2399"]
[BlackElo "2523"]
[Annotator "ChessBase"]
[PlyCount "60"]
[EventDate "2019.04.17"]
[EventType "swiss"]
[EventCountry "ESP"]
[SourceTitle "playchess.com"]
[Source "ChessBase"]
[SourceQuality "1"]
[TimeControl "5400+30"]

1. d4 {[%emt 0:03:12]} Nf6 {[%emt 0:00:00]} 2. c4 {[%emt 0:01:08]} e6 {[%emt 0:00:00]} 3. Nf3 {[%emt 0:00:39]} d5 {[%emt 0:00:06]} 4. e3 {[%emt 0:03:46]} a6 {[%emt 0:02:31]} 5. Nbd2 {[%emt 0:04:49]} c5 {[%emt 0:03:59]} 6. cxd5 {[%emt 0:01:01]} exd5 {[%emt 0:00:30]} 7. dxc5 {[%emt 0:01:25]} Bxc5 {[%emt 0:00:10]} 8. g3 {[%emt 0:02:25]} O-O {[%emt 0:02:00]} 9. Bg2 {[%emt 0:05:17]} d4 {[%emt 0:03:35]} 10. exd4 {[%emt 0:08:41]} Re8+ {[%emt 0:01:30]} 11. Kf1 {[%emt 0:00:05]} Ba7 {[%emt 0:02:12]} 12. Nb3 {[%emt 0:04:22]} Nc6 {[%emt 0:02:58]} 13. h4 {[%emt 0:02:13]} Bf5 {[%emt 0:03:12]} 14. h5 {[%emt 0:01:13]} h6 {[%emt 0:00:11]} 15. Rh4 {[%emt 0:01:21]} Nb4 {[%emt 0:04:37]} 16. Bf4 {[%emt 0:02:41]} Rc8 {[%emt 0:11:37]} 17. Qd2 {[%emt 0:09:28]} Nbd5 {[%emt 0:26:35]} 18. Bxh6 {[%emt 0:21:48]} Ne4 {[%emt 0:06:01]} 19. Rxe4 {[%emt 0:00:44]} Bxe4 {[%emt 0:00:08]} 20. Bg5 {[%emt 0:08:40]} f6 {[%emt 0:00:17]} 21. Bh4 {[%emt 0:00:01]} Rc2 {[%emt 0:00:17]} 22. Qd1 {[%emt 0:00:43]} Rxb2 {[%emt 0:04:08]} 23. Rc1 {[%emt 0:01:10]} Nb4 {[%emt 0:02:44]} 24. Nbd2 {[%emt 0:03:27]} Bc2 {[%emt 0:03:24]} 25. Rxc2 {[%emt 0:00:02]} Nxc2 {[%emt 0:00:07]} 26. h6 {[%emt 0:06:56]} Nxd4 {[%emt 0:01:41]} 27. Ng5 {[%emt 0:02:59]} fxg5 {[%emt 0:02:04]} 28. Qh5 {[%emt 0:00:40]} Re1+ {[%emt 0:02:17]} 29. Kxe1 {[%emt 0:00:08]} Nf3+ {[%emt 0:00:05]} 30. Kf1 {[%emt 0:02:46]} Qd3# {[%emt 0:00:10]} 0-1

[Event "46th Roda Open 2019"]
[Site "La Roda"]
[Date "2019.04.21"]
[Round "8.7"]
[White "Ladron De Guevara Pinto, Paolo"]
[Black "Merario Alarcon, Andres"]
[Result "1/2-1/2"]
[ECO "C56"]
[WhiteElo "2429"]
[BlackElo "2399"]
[Annotator "ChessBase"]
[PlyCount "41"]
[EventDate "2019.04.17"]
[EventType "swiss"]
[EventCountry "ESP"]
[SourceTitle "playchess.com"]
[Source "ChessBase"]
[SourceQuality "1"]
[TimeControl "5400+30"]

1. e4 {[%emt 0:05:35]} e5 {[%emt 0:00:00]} 2. Nf3 {[%emt 0:00:05]} Nc6 {[%emt 0:00:00]} 3. d4 {[%emt 0:00:05]} exd4 {[%emt 0:00:00]} 4. Bc4 {[%emt 0:00:05]} Nf6 {[%emt 0:00:00]} 5. O-O {[%emt 0:00:06]} Nxe4 {[%emt 0:00:15]} 6. Nc3 {[%emt 0:00:41]} dxc3 {[%emt 0:00:36]} 7. Bxf7+ {[%emt 0:00:42]} Kxf7 {[%emt 0:00:23]} 8. Qd5+ {[%emt 0:00:08]} Ke8 {[%emt 0:01:00]} 9. Re1 {[%emt 0:00:23]} Qf6 {[%emt 0:00:41]} 10. Rxe4+ {[%emt 0:01:10]} Be7 {[%emt 0:00:36]} 11. Bg5 {[%emt 0:00:49]} Qf7 {[%emt 0:00:20]} 12. Qd3 {[%emt 0:00:49]} cxb2 {[%emt 0:00:46]} 13. Rae1 {[%emt 0:00:07]} Kf8 {[%emt 0:00:59]} 14. Rf4 {[%emt 0:00:27]} Bf6 {[%emt 0:00:06]} 15. Bxf6 {[%emt 0:00:33]} gxf6 {[%emt 0:00:55]} 16. Qc3 {[%emt 0:00:10]} Kg7 {[%emt 0:01:09]} 17. Rg4+ {[%emt 0:00:46]} Kf8 {[%emt 0:00:28]} 18. Rf4 {[%emt 0:00:04]} Kg7 {[%emt 0:00:15]} 19. Rg4+ {[%emt 0:00:27]} Kf8 {[%emt 0:00:37]} 20. Rf4 {[%emt 0:00:05]} Kg7 {[%emt 0:00:13]} 21. Rg4+ {[%emt 0:00:09]} 1/2-1/2

[Event "46th Roda Open 2019"]
[Site "La Roda"]
[Date "2019.04.21"]
[Round "8.8"]
[White "Grigoryan, Karen H."]
[Black "Lopez Mulet, Inigo"]
[Result "0-1"]
[ECO "E00"]
[WhiteElo "2545"]
[BlackElo "2368"]
[Annotator "ChessBase"]
[PlyCount "70"]
[EventDate "2019.04.17"]
[EventType "swiss"]
[EventCountry "ESP"]
[SourceTitle "playchess.com"]
[Source "ChessBase"]
[SourceQuality "1"]
[TimeControl "5400+30"]

1. d4 {[%emt 0:01:48]} e6 {[%emt 0:00:24]} 2. c4 {[%emt 0:00:09]} Bb4+ {[%emt 0:00:25]} 3. Bd2 {[%emt 0:02:24]} a5 {[%emt 0:00:20]} 4. Nf3 {[%emt 0:02:43]} d6 {[%emt 0:01:58]} 5. g3 {[%emt 0:00:32]} Nc6 {[%emt 0:00:23]} 6. Nc3 {[%emt 0:03:31]} Nf6 {[%emt 0:02:48]} 7. Bg2 e5 {[%emt 0:07:53]} 8. d5 {[%emt 0:04:06]} Nb8 {[%emt 0:00:18]} 9. O-O {[%emt 0:00:52]} O-O {[%emt 0:03:27]} 10. Ne1 {[%emt 0:01:27]} Bf5 {[%emt 0:20:38]} 11. Nc2 {[%emt 0:10:24]} Bxc3 {[%emt 0:10:42]} 12. Bxc3 {[%emt 0:01:13]} Ne4 {[%emt 0:00:41]} 13. Be1 {[%emt 0:00:30]} Nc5 {[%emt 0:00:14]} 14. b3 {[%emt 0:05:00]} Qc8 {[%emt 0:06:45]} 15. Bc3 {[%emt 0:04:39]} Bh3 {[%emt 0:02:05]} 16. f3 {[%emt 0:01:28]} Bxg2 {[%emt 0:01:20]} 17. Kxg2 {[%emt 0:00:06]} f5 {[%emt 0:00:09]} 18. f4 {[%emt 0:01:23]} Qe8 {[%emt 0:02:13]} 19. fxe5 {[%emt 0:01:36]} dxe5 {[%emt 0:00:51]} 20. Ne3 {[%emt 0:04:22]} f4 {[%emt 0:05:07]} 21. gxf4 {[%emt 0:06:12]} Rxf4 {[%emt 0:07:54]} 22. Qc2 {[%emt 0:18:14]} Ne4 {[%emt 0:00:59]} 23. Kh1 {[%emt 0:08:28]} Ra6 {[%emt 0:08:26]} 24. Ng2 {[%emt 0:05:35]} Qg6 {[%emt 0:01:21]} 25. Rxf4 {[%emt 0:05:49]} Ng3+ {[%emt 0:03:46]} 26. hxg3 {[%emt 0:00:05]} Qxc2 {[%emt 0:00:05]} 27. Bxe5 {[%emt 0:00:05]} Nd7 {[%emt 0:00:40]} 28. Bxc7 {[%emt 0:00:45]} Rf6 {[%emt 0:00:30]} 29. Bxa5 {[%emt 0:02:17]} Rxf4 {[%emt 0:01:09]} 30. Nxf4 {[%emt 0:01:13]} Qb2 {[%emt 0:02:01]} 31. Rd1 {[%emt 0:01:03]} Qxa2 {[%emt 0:00:09]} 32. Be1 {[%emt 0:02:39]} g5 {[%emt 0:00:57]} 33. Nd3 {[%emt 0:04:31]} Qxe2 {[%emt 0:00:23]} 34. Nf2 {[%emt 0:00:05]} Qf1+ {[%emt 0:00:29]} 35. Kh2 {[%emt 0:00:06]} Ne5 {[%emt 0:00:10]} 0-1

[Event "46th Roda Open 2019"]
[Site "La Roda"]
[Date "2019.04.21"]
[Round "9.1"]
[White "Grachev, Boris"]
[Black "Perez Candelario, Manuel"]
[Result "1/2-1/2"]
[ECO "E70"]
[WhiteElo "2618"]
[BlackElo "2615"]
[Annotator "ChessBase"]
[PlyCount "43"]
[EventDate "2019.04.17"]
[EventType "swiss"]
[EventCountry "ESP"]
[SourceTitle "playchess.com"]
[Source "ChessBase"]
[SourceQuality "1"]
[TimeControl "5400+30"]

1. d4 {[%emt 0:01:39]} Nf6 {[%emt 0:00:00]} 2. c4 {[%emt 0:00:04]} g6 {[%emt 0:00:00]} 3. Nc3 {[%emt 0:00:06]} Bg7 {[%emt 0:00:00]} 4. e4 {[%emt 0:00:23]} d6 {[%emt 0:00:00]} 5. Bg5 {[%emt 0:00:05]} h6 {[%emt 0:03:16]} 6. Bd2 {[%emt 0:03:39]} Na6 {[%emt 0:11:59]} 7. Bd3 {[%emt 0:04:07]} c5 {[%emt 0:02:08]} 8. d5 {[%emt 0:01:09]} e6 {[%emt 0:00:22]} 9. Nf3 {[%emt 0:07:58]} exd5 {[%emt 0:06:10]} 10. cxd5 {[%emt 0:02:00]} O-O {[%emt 0:00:43]} 11. O-O {[%emt 0:02:42]} Nc7 {[%emt 0:04:51]} 12. Re1 {[%emt 0:05:47]} a6 {[%emt 0:02:31]} 13. a4 {[%emt 0:00:58]} b6 {[%emt 0:00:21]} 14. Rb1 {[%emt 0:03:42]} Bg4 {[%emt 0:06:10]} 15. h3 {[%emt 0:01:00]} Bxf3 {[%emt 0:00:04]} 16. Qxf3 {[%emt 0:00:03]} Nd7 {[%emt 0:01:08]} 17. Qg3 {[%emt 0:06:04]} Ne5 {[%emt 0:05:22]} 18. Bf1 {[%emt 0:00:11]} g5 {[%emt 0:01:09]} 19. Nd1 {[%emt 0:02:12]} f5 {[%emt 0:08:06]} 20. f4 {[%emt 0:03:46]} gxf4 {[%emt 0:01:38]} 21. Bxf4 {[%emt 0:00:57]} Kh8 {[%emt 0:01:31]} 22. Nc3 {[%emt 0:29:02]} 1/2-1/2

[Event "46th Roda Open 2019"]
[Site "La Roda"]
[Date "2019.04.21"]
[Round "9.2"]
[White "Campora, Daniel H."]
[Black "Predke, Alexandr"]
[Result "0-1"]
[ECO "A05"]
[WhiteElo "2405"]
[BlackElo "2619"]
[Annotator "ChessBase"]
[PlyCount "56"]
[EventDate "2019.04.17"]
[EventType "swiss"]
[EventCountry "ESP"]
[SourceTitle "playchess.com"]
[Source "ChessBase"]
[SourceQuality "1"]
[TimeControl "5400+30"]

1. Nf3 {[%emt 0:00:00]} Nf6 {[%emt 0:02:16]} 2. g3 {[%emt 0:00:00]} b6 {[%emt 0:00:25]} 3. Bg2 {[%emt 0:00:26]} Bb7 {[%emt 0:00:06]} 4. O-O {[%emt 0:00:18]} c5 {[%emt 0:00:16]} 5. c4 {[%emt 0:01:12]} g6 {[%emt 0:00:10]} 6. Nc3 {[%emt 0:04:15]} Bg7 {[%emt 0:00:19]} 7. d3 {[%emt 0:00:49]} O-O {[%emt 0:01:12]} 8. Bd2 {[%emt 0:04:42]} d6 {[%emt 0:04:17]} 9. Qc1 {[%emt 0:02:05]} Nc6 {[%emt 0:08:18]} 10. Bh6 {[%emt 0:00:41]} Rb8 {[%emt 0:08:57]} 11. Bxg7 {[%emt 0:04:55]} Kxg7 {[%emt 0:00:17]} 12. Rb1 {[%emt 0:03:47]} e5 {[%emt 0:04:02]} 13. a3 {[%emt 0:02:33]} Nd4 {[%emt 0:04:53]} 14. Nd2 {[%emt 0:12:31]} h5 {[%emt 0:02:37]} 15. e3 {[%emt 0:09:07]} Ne6 {[%emt 0:03:31]} 16. Nde4 {[%emt 0:05:39]} h4 {[%emt 0:17:21]} 17. Nxf6 {[%emt 0:09:39]} Qxf6 {[%emt 0:00:04]} 18. Nd5 {[%emt 0:08:03]} Qf5 {[%emt 0:00:29]} 19. Qd1 {[%emt 0:00:38]} hxg3 {[%emt 0:01:21]} 20. hxg3 {[%emt 0:05:59]} Rh8 {[%emt 0:15:01]} 21. f4 {[%emt 0:01:40]} exf4 {[%emt 0:00:19]} 22. gxf4 {[%emt 0:00:06]} Bxd5 {[%emt 0:01:55]} 23. cxd5 {[%emt 0:00:54]} Nc7 {[%emt 0:00:33]} 24. Qd2 {[%emt 0:02:44]} Rh4 {[%emt 0:01:43]} 25. b4 {[%emt 0:05:42]} Rbh8 {[%emt 0:02:31]} 26. bxc5 {[%emt 0:00:11]} dxc5 {[%emt 0:00:21]} 27. e4 {[%emt 0:05:31]} Qg4 {[%emt 0:00:25]} 28. Kf2 {[%emt 0:00:39]} Qxg2+ {[%emt 0:00:17]} 0-1